[Event "Steinthor Baldursson memorial 2018"]
[Site "?"]
[Date "2018.01.06"]
[Round "5"]
[White "Mai, Alexander Oliver"]
[Black "Birkisson, Bjorn Holm"]
[Result "1/2-1/2"]
[ECO "E06"]
[WhiteElo "1970"]
[BlackElo "2084"]
[PlyCount "49"]
[EventDate "2018.??.??"]
[EventType "swiss"]
[EventCountry "ISL"]
[SourceTitle "Kopavogur"]
[TimeControl "5400+30"]
[WhiteClock "0:27:55"]
[BlackClock "0:45:35"]

1. Nf3 {[%emt 0:00:00]} Nf6 {[%emt 0:07:20]} 2. c4 {[%emt 0:00:35]} e6 {[%emt 0:00:23]} 3. g3 {[%emt 0:00:20]} d5 {[%emt 0:00:34]} 4. d4 {[%emt 0:00:23]} Be7 {[%emt 0:00:12]} 5. Bg2 {[%emt 0:00:13]} O-O {[%emt 0:00:07]} 6. O-O {[%emt 0:00:36]} dxc4 {[%emt 0:00:04]} 7. Qc2 {[%emt 0:00:50]} a6 {[%emt 0:00:07]} 8. a4 {[%emt 0:00:22]} Bd7 {[%emt 0:00:40]} 9. Qxc4 {[%emt 0:00:46]} Bc6 {[%emt 0:01:49]} 10. Bf4 {[%emt 0:02:40]} Nbd7 {[%emt 0:31:57]} 11. Rd1 {[%emt 0:09:46]} Rc8 {[%emt 0:01:36]} 12. Nc3 {[%emt 0:04:34]} Qe8 {[%emt 0:05:18]} 13. a5 {[%emt 0:04:22]} Nd5 {[%emt 0:05:26]} 14. Nxd5 {[%emt 0:06:16]} Bxd5 {[%emt 0:01:49]} 15. Qd3 {[%emt 0:00:46]} Nf6 {[%emt 0:02:41]} 16. Bg5 {[%emt 0:03:13]} Qb5 {[%emt 0:07:34]} 17. Qxb5 {[%emt 0:03:57]} axb5 {[%emt 0:00:04]} 18. a6 {[%emt 0:05:26]} bxa6 {[%emt 0:02:00]} 19. Rxa6 {[%emt 0:00:10]} Ra8 {[%emt 0:00:35]} 20. Rda1 {[%emt 0:02:11]} Rxa6 {[%emt 0:00:28]} 21. Rxa6 {[%emt 0:00:04]} Ra8 {[%emt 0:00:23]} 22. Rxa8+ {[%emt 0:00:27]} Bxa8 {[%emt 0:00:05]} 23. Ne5 {[%emt 0:07:58]} Bxg2 {[%emt 0:01:51]} 24. Kxg2 {[%emt 0:00:02]} Nd5 {[%emt 0:01:02]} 25. Bxe7 {[%emt 0:00:58]} 1/2-1/2

[Event "Steinthor Baldursson memorial 2018"]
[Site "?"]
[Date "2018.01.06"]
[Round "5"]
[White "Bannout, Edvin"]
[Black "Davidsson, Oskar Vikingur"]
[Result "1/2-1/2"]
[ECO "A37"]
[WhiteElo "1869"]
[BlackElo "1854"]
[PlyCount "56"]
[EventDate "2018.??.??"]
[EventType "swiss"]
[EventCountry "ISL"]
[SourceTitle "Kopavogur"]
[TimeControl "5400+30"]
[WhiteClock "0:34:09"]
[BlackClock "0:37:04"]

1. c4 {[%emt 0:00:00]} c5 {[%emt 0:00:09]} 2. Nc3 {[%emt 0:00:00]} Nc6 {[%emt 0:00:29]} 3. g3 {[%emt 0:00:02]} g6 {[%emt 0:01:50]} 4. Bg2 {[%emt 0:00:02]} Bg7 {[%emt 0:00:37]} 5. Nf3 {[%emt 0:04:21]} e5 {[%emt 0:01:14]} 6. O-O {[%emt 0:00:15]} d6 {[%emt 0:00:55]} 7. d3 {[%emt 0:03:01]} Nge7 {[%emt 0:00:41]} 8. Ne1 {[%emt 0:00:26]} O-O {[%emt 0:02:59]} 9. Nc2 {[%emt 0:00:32]} Be6 {[%emt 0:03:32]} 10. Ne3 {[%emt 0:05:30]} Qd7 {[%emt 0:02:55]} 11. Ned5 {[%emt 0:02:18]} Bh3 {[%emt 0:03:07]} 12. e4 {[%emt 0:04:28]} Bxg2 {[%emt 0:00:34]} 13. Kxg2 {[%emt 0:00:13]} Nxd5 {[%emt 0:02:06]} 14. Nxd5 {[%emt 0:00:57]} Ne7 {[%emt 0:03:11]} 15. Nxe7+ {[%emt 0:04:23]} Qxe7 {[%emt 0:00:10]} 16. Bd2 {[%emt 0:04:14]} f5 {[%emt 0:01:45]} 17. f3 {[%emt 0:03:45]} Rf7 {[%emt 0:05:26]} 18. Qe2 {[%emt 0:02:16]} Raf8 {[%emt 0:01:02]} 19. a3 {[%emt 0:01:19]} b6 {[%emt 0:04:05]} 20. b4 {[%emt 0:02:11]} Qe6 {[%emt 0:03:13]} 21. Rab1 {[%emt 0:03:15]} Rc8 {[%emt 0:07:08]} 22. a4 {[%emt 0:08:03]} Rb7 {[%emt 0:06:32]} 23. Rb2 {[%emt 0:02:57]} Qd7 {[%emt 0:02:49]} 24. Qd1 {[%emt 0:02:27]} Rcb8 {[%emt 0:01:54]} 25. Qb3 {[%emt 0:01:33]} Bf6 {[%emt 0:00:51]} 26. Rfb1 {[%emt 0:01:48]} Qc6 {[%emt 0:04:58]} 27. Ra1 {[%emt 0:04:39]} a5 {[%emt 0:04:57]} 28. b5 {[%emt 0:02:01]} Qd7 {[%emt 0:00:42]} 1/2-1/2

[Event "Steinthor Baldursson memorial 2018"]
[Site "?"]
[Date "2018.01.06"]
[Round "5"]
[White "Zarovs, Aleksandrs"]
[Black "Johannsson, Birkir Isak"]
[Result "1/2-1/2"]
[ECO "B52"]
[WhiteElo "1831"]
[BlackElo "1760"]
[PlyCount "33"]
[EventDate "2018.??.??"]
[EventType "swiss"]
[EventCountry "ISL"]
[SourceTitle "Kopavogur"]
[TimeControl "5400+30"]
[WhiteClock "0:36:52"]
[BlackClock "0:28:28"]

1. e4 {[%emt 0:00:00]} c5 {[%emt 0:02:23]} 2. Nf3 {[%emt 0:00:00]} d6 {[%emt 0:00:09]} 3. Bb5+ {[%emt 0:00:00]} Bd7 {[%emt 0:00:38]} 4. Bxd7+ {[%emt 0:00:00]} Qxd7 {[%emt 0:00:01]} 5. O-O {[%emt 0:00:10]} Nf6 {[%emt 0:00:30]} 6. e5 {[%emt 0:00:10]} dxe5 {[%emt 0:04:01]} 7. Nxe5 {[%emt 0:00:07]} Qd6 {[%emt 0:00:23]} 8. Qe2 {[%emt 0:03:38]} Nbd7 {[%emt 0:05:11]} 9. f4 {[%emt 0:03:58]} e6 {[%emt 0:03:05]} 10. Nc3 {[%emt 0:06:37]} a6 {[%emt 0:02:18]} 11. Nxd7 {[%emt 0:06:26]} Nxd7 {[%emt 0:08:42]} 12. b3 {[%emt 0:06:55]} Be7 {[%emt 0:12:59]} 13. Bb2 {[%emt 0:01:16]} Qd4+ {[%emt 0:07:45]} 14. Kh1 {[%emt 0:01:05]} O-O {[%emt 0:00:04]} 15. Rf3 {[%emt 0:11:56]} Nf6 {[%emt 0:05:40]} 16. f5 {[%emt 0:16:38]} Rad8 {[%emt 0:07:19]} 17. Rd3 {[%emt 0:11:06]} 1/2-1/2

[Event "Steinthor Baldursson memorial 2018"]
[Site "?"]
[Date "2018.01.06"]
[Round "5"]
[White "Skaale, Janus"]
[Black "Thorhallsson, Simon"]
[Result "0-1"]
[ECO "B51"]
[WhiteElo "1752"]
[BlackElo "2040"]
[PlyCount "70"]
[EventDate "2018.??.??"]
[EventType "swiss"]
[EventCountry "ISL"]
[SourceTitle "Kopavogur"]
[TimeControl "5400+30"]
[WhiteClock "0:17:53"]
[BlackClock "0:01:44"]

1. e4 {[%emt 0:00:00]} c5 {[%emt 0:01:24]} 2. Nf3 {[%emt 0:00:00]} d6 {[%emt 0:00:12]} 3. Bb5+ {[%emt 0:00:00]} Nd7 {[%emt 0:02:22]} 4. O-O {[%emt 0:03:25]} a6 {[%emt 0:01:24]} 5. Bxd7+ {[%emt 0:01:16]} Bxd7 {[%emt 0:00:08]} 6. c3 {[%emt 0:01:18]} Nf6 {[%emt 0:05:02]} 7. Re1 {[%emt 0:00:16]} Bc6 {[%emt 0:09:23]} 8. d3 {[%emt 0:14:03]} e6 {[%emt 0:06:11]} 9. Bg5 {[%emt 0:06:56]} Be7 {[%emt 0:01:01]} 10. Nbd2 {[%emt 0:04:27]} h6 {[%emt 0:01:38]} 11. Bh4 {[%emt 0:10:42]} g5 {[%emt 0:10:11]} 12. Bg3 {[%emt 0:00:06]} Nh5 {[%emt 0:00:36]} 13. Nf1 {[%emt 0:05:17]} Nxg3 {[%emt 0:01:28]} 14. Nxg3 {[%emt 0:00:59]} h5 {[%emt 0:00:47]} 15. d4 {[%emt 0:00:52]} g4 {[%emt 0:05:01]} 16. Nd2 {[%emt 0:00:11]} Bg5 {[%emt 0:01:17]} 17. d5 {[%emt 0:06:04]} Bd7 {[%emt 0:00:57]} 18. e5 {[%emt 0:06:56]} exd5 {[%emt 0:10:42]} 19. c4 {[%emt 0:02:00]} h4 {[%emt 0:04:33]} 20. exd6+ {[%emt 0:04:10]} Kf8 {[%emt 0:00:28]} 21. Ngf1 {[%emt 0:04:42]} g3 {[%emt 0:04:06]} 22. hxg3 {[%emt 0:02:18]} hxg3 {[%emt 0:00:13]} 23. Nxg3 {[%emt 0:01:49]} Bxd2 {[%emt 0:05:42]} 24. Qxd2 {[%emt 0:00:07]} Qh4 {[%emt 0:00:55]} 25. Qe3 {[%emt 0:17:27]} Re8 {[%emt 0:00:51]} 26. Qxe8+ {[%emt 0:02:42]} Bxe8 {[%emt 0:00:08]} 27. Re7 {[%emt 0:01:35]} Bc6 {[%emt 0:03:28]} 28. Rc7 {[%emt 0:02:11]} Qh2+ {[%emt 0:06:10]} 29. Kf1 {[%emt 0:00:12]} d4 {[%emt 0:01:25]} 30. d7 {[%emt 0:01:35]} Qxg2+ {[%emt 0:00:49]} 31. Ke2 {[%emt 0:00:26]} Qf3+ {[%emt 0:00:23]} 32. Kf1 {[%emt 0:01:15]} Bxd7 {[%emt 0:00:12]} 33. Rxd7 {[%emt 0:00:17]} Rh1+ {[%emt 0:00:12]} 34. Nxh1 {[%emt 0:00:07]} Qxh1+ {[%emt 0:00:07]} 35. Ke2 {[%emt 0:00:05]} Qxa1 {[%emt 0:00:11]} 0-1

[Event "Steinthor Baldursson memorial 2018"]
[Site "?"]
[Date "2018.01.06"]
[Round "5"]
[White "Fjallheim, Leif Reinert"]
[Black "Briem, Benedikt"]
[Result "1/2-1/2"]
[ECO "A04"]
[WhiteElo "1720"]
[BlackElo "1464"]
[PlyCount "49"]
[EventDate "2018.??.??"]
[EventType "swiss"]
[EventCountry "ISL"]
[SourceTitle "Kopavogur"]
[TimeControl "5400+30"]
[WhiteClock "0:57:40"]
[BlackClock "0:03:26"]

1. Nf3 {[%emt 0:00:00]} c5 {[%emt 0:01:10]} 2. g3 {[%emt 0:00:51]} d6 {[%emt 0:00:20]} 3. e4 {[%emt 0:01:14]} e5 {[%emt 0:00:14]} 4. d3 {[%emt 0:01:16]} Nc6 {[%emt 0:00:11]} 5. c3 {[%emt 0:02:55]} Bg4 {[%emt 0:01:44]} 6. Bg2 {[%emt 0:01:53]} g6 {[%emt 0:00:11]} 7. h3 {[%emt 0:04:42]} Bxf3 {[%emt 0:01:14]} 8. Bxf3 {[%emt 0:01:34]} Bg7 {[%emt 0:00:37]} 9. Be3 {[%emt 0:08:06]} Nge7 {[%emt 0:01:12]} 10. Bg2 {[%emt 0:10:18]} O-O {[%emt 0:01:12]} 11. h4 {[%emt 0:11:11]} h6 {[%emt 0:02:50]} 12. Nd2 {[%emt 0:17:17]} Rb8 {[%emt 0:05:40]} 13. g4 {[%emt 0:05:39]} b5 {[%emt 0:05:32]} 14. f4 {[%emt 0:06:50]} exf4 {[%emt 0:05:15]} 15. Bxf4 {[%emt 0:00:04]} b4 {[%emt 0:00:28]} 16. Rc1 {[%emt 0:06:48]} bxc3 {[%emt 0:04:19]} 17. bxc3 {[%emt 0:00:10]} Ne5 {[%emt 0:01:07]} 18. Bxe5 {[%emt 0:08:56]} dxe5 {[%emt 0:02:04]} 19. Nc4 {[%emt 0:01:50]} Nc8 {[%emt 0:01:11]} 20. Rb1 {[%emt 0:02:24]} Nd6 {[%emt 0:02:23]} 21. Ne3 {[%emt 0:02:59]} Rxb1 {[%emt 0:02:38]} 22. Qxb1 {[%emt 0:00:02]} Bf6 {[%emt 0:01:30]} 23. h5 {[%emt 0:00:47]} Bh4+ {[%emt 0:00:48]} 24. Ke2 {[%emt 0:00:48]} g5 25. Nd5 1/2-1/2

[Event "Steinthor Baldursson memorial 2018"]
[Site "?"]
[Date "2018.01.06"]
[Round "5"]
[White "Apol, Luitjen Akselsson"]
[Black "Heidarsson, Arnar"]
[Result "1-0"]
[ECO "C26"]
[WhiteElo "1600"]
[BlackElo "1592"]
[PlyCount "59"]
[EventDate "2018.??.??"]
[EventType "swiss"]
[EventCountry "ISL"]
[SourceTitle "Kopavogur"]
[TimeControl "5400+30"]
[WhiteClock "0:09:31"]
[BlackClock "0:02:28"]

1. e4 {[%emt 0:00:00]} e5 {[%emt 0:00:17]} 2. Nc3 {[%emt 0:00:20]} Nf6 {[%emt 0:00:27]} 3. Bc4 {[%emt 0:00:31]} Bc5 {[%emt 0:00:32]} 4. d3 {[%emt 0:00:28]} h6 {[%emt 0:00:08]} 5. f4 {[%emt 0:24:06]} exf4 {[%emt 0:21:47]} 6. Bxf4 {[%emt 0:00:27]} d6 {[%emt 0:03:07]} 7. Nf3 {[%emt 0:05:09]} O-O {[%emt 0:01:18]} 8. Qd2 {[%emt 0:02:56]} Kh7 {[%emt 0:05:10]} 9. O-O-O {[%emt 0:03:48]} Nc6 {[%emt 0:03:12]} 10. d4 {[%emt 0:06:37]} Bb4 {[%emt 0:00:23]} 11. Bd3 {[%emt 0:00:25]} Ng8 {[%emt 0:02:35]} 12. h3 {[%emt 0:08:56]} g6 {[%emt 0:13:14]} 13. g4 {[%emt 0:02:40]} Re8 {[%emt 0:06:23]} 14. Rdf1 {[%emt 0:06:51]} Re7 {[%emt 0:10:28]} 15. Rhg1 {[%emt 0:03:08]} d5 {[%emt 0:01:58]} 16. e5 {[%emt 0:03:42]} Be6 {[%emt 0:00:51]} 17. h4 {[%emt 0:01:35]} Qd7 {[%emt 0:00:53]} 18. Be2 {[%emt 0:13:03]} Ree8 {[%emt 0:08:02]} 19. h5 {[%emt 0:03:18]} g5 {[%emt 0:05:34]} 20. Be3 {[%emt 0:04:39]} Be7 {[%emt 0:01:31]} 21. Bd3+ {[%emt 0:01:41]} Kh8 {[%emt 0:00:51]} 22. Bf5 {[%emt 0:02:23]} Qd8 {[%emt 0:00:47]} 23. Bxe6 {[%emt 0:01:30]} fxe6 {[%emt 0:00:02]} 24. Qd3 {[%emt 0:00:27]} Qd7 {[%emt 0:01:47]} 25. Nd2 {[%emt 0:01:01]} Bd8 {[%emt 0:00:37]} 26. Qg6 {[%emt 0:01:02]} Re7 {[%emt 0:02:02]} 27. Rf8 {[%emt 0:00:34]} Rg7 {[%emt 0:00:21]} 28. Qxh6+ {[%emt 0:00:10]} Rh7 {[%emt 0:00:15]} 29. Qg6 {[%emt 0:00:20]} Nce7 {[%emt 0:00:27]} 30. Qf6+ {[%emt 0:00:45]} 1-0

[Event "Steinthor Baldursson memorial 2018"]
[Site "?"]
[Date "2018.01.07"]
[Round "7"]
[White "Dijkhuis, Tycho"]
[Black "Jazdanovs, Aleksandrs"]
[Result "1/2-1/2"]
[ECO "B52"]
[WhiteElo "2402"]
[BlackElo "2218"]
[PlyCount "100"]
[EventDate "2018.??.??"]
[EventType "swiss"]
[EventCountry "ISL"]
[SourceTitle "Kopavogur"]
[TimeControl "5400+30"]
[WhiteClock "0:41:57"]
[BlackClock "0:04:51"]

1. e4 {[%emt 0:00:00]} c5 {[%emt 0:00:00]} 2. Nf3 {[%emt 0:00:00]} d6 {[%emt 0:00:00]} 3. Bb5+ {[%emt 0:00:00]} Bd7 {[%emt 0:00:00]} 4. Bxd7+ {[%emt 0:00:47]} Qxd7 {[%emt 0:00:00]} 5. O-O {[%emt 0:00:24]} Nf6 {[%emt 0:00:04]} 6. e5 {[%emt 0:00:56]} dxe5 {[%emt 0:00:07]} 7. Nxe5 {[%emt 0:00:04]} Qc7 {[%emt 0:00:06]} 8. Re1 {[%emt 0:02:45]} e6 {[%emt 0:00:33]} 9. Nc3 {[%emt 0:11:19]} a6 {[%emt 0:01:13]} 10. h3 {[%emt 0:06:34]} Nc6 {[%emt 0:02:47]} 11. Nxc6 {[%emt 0:00:25]} Qxc6 {[%emt 0:00:02]} 12. d3 {[%emt 0:00:15]} Be7 {[%emt 0:05:15]} 13. b3 {[%emt 0:04:17]} b5 {[%emt 0:04:26]} 14. Bb2 {[%emt 0:01:10]} c4 {[%emt 0:02:37]} 15. dxc4 {[%emt 0:04:40]} bxc4 {[%emt 0:00:39]} 16. Re3 {[%emt 0:13:36]} O-O {[%emt 0:08:35]} 17. Qe2 {[%emt 0:01:06]} Bd6 {[%emt 0:00:26]} 18. Re1 {[%emt 0:05:10]} Rfd8 {[%emt 0:06:32]} 19. Ne4 {[%emt 0:03:39]} Nxe4 {[%emt 0:03:21]} 20. Rxe4 {[%emt 0:00:18]} c3 {[%emt 0:02:20]} 21. Rc4 {[%emt 0:11:37]} Qxc4 {[%emt 0:00:14]} 22. Qxc4 {[%emt 0:00:08]} cxb2 {[%emt 0:00:09]} 23. Qc3 Ba3 {[%emt 0:06:08]} 24. b4 {[%emt 0:06:35]} Bxb4 {[%emt 0:00:12]} 25. Qxb4 {[%emt 0:00:04]} Rdb8 {[%emt 0:01:46]} 26. Qe4 {[%emt 0:00:27]} b1=Q {[%emt 0:00:10]} 27. Rxb1 {[%emt 0:00:05]} Rxb1+ {[%emt 0:00:09]} 28. Kh2 {[%emt 0:00:01]} Rc8 {[%emt 0:00:39]} 29. Qa4 {[%emt 0:00:12]} Rb6 {[%emt 0:01:21]} 30. Qa5 {[%emt 0:02:45]} Rbc6 {[%emt 0:00:27]} 31. a4 {[%emt 0:00:41]} g6 {[%emt 0:02:44]} 32. Kg1 {[%emt 0:00:03]} h5 {[%emt 0:00:42]} 33. g3 {[%emt 0:00:28]} Kh7 {[%emt 0:00:58]} 34. h4 {[%emt 0:00:27]} R8c7 {[%emt 0:03:01]} 35. Kg2 {[%emt 0:01:26]} f6 {[%emt 0:00:56]} 36. Kg1 {[%emt 0:00:39]} e5 {[%emt 0:00:22]} 37. Kg2 {[%emt 0:05:23]} Rd7 {[%emt 0:01:15]} 38. c4 {[%emt 0:02:56]} Rd4 {[%emt 0:03:32]} 39. Qb4 {[%emt 0:00:07]} Rd7 {[%emt 0:02:31]} 40. Qf8 {[%emt 0:00:47]} Rxc4 {[%emt 0:00:20]} 41. Qxf6 {[%emt 0:00:08]} Rxa4 {[%emt 0:00:34]} 42. Qxe5 {[%emt 0:00:18]} Rad4 {[%emt 0:00:50]} 43. Qa5 {[%emt 0:01:17]} R4d6 {[%emt 0:00:12]} 44. f3 {[%emt 0:06:27]} Rb7 {[%emt 0:01:08]} 45. Kh3 {[%emt 0:02:22]} Rf7 {[%emt 0:00:43]} 46. f4 {[%emt 0:04:14]} Rfd7 {[%emt 0:01:25]} 47. f5 {[%emt 0:02:23]} Rg7 {[%emt 0:01:15]} 48. fxg6+ {[%emt 0:00:33]} Rdxg6 {[%emt 0:00:06]} 49. Qxh5+ {[%emt 0:00:05]} Kg8 {[%emt 0:00:05]} 50. Qd5+ {[%emt 0:00:06]} Kh7 {[%emt 0:00:06]} 1/2-1/2

[Event "Steinthor Baldursson memorial 2018"]
[Site "?"]
[Date "2018.01.07"]
[Round "7"]
[White "Johannesson, Oliver Aron"]
[Black "Mai, Alexander Oliver"]
[Result "1/2-1/2"]
[ECO "C55"]
[WhiteElo "2277"]
[BlackElo "1970"]
[PlyCount "96"]
[EventDate "2018.??.??"]
[EventType "swiss"]
[EventCountry "ISL"]
[SourceTitle "Kopavogur"]
[TimeControl "5400+30"]
[WhiteClock "0:09:55"]
[BlackClock "0:36:35"]

1. e4 {[%emt 0:07:36]} e5 {[%emt 0:00:00]} 2. Nf3 {[%emt 0:00:32]} Nc6 {[%emt 0:00:00]} 3. Bc4 {[%emt 0:00:23]} Nf6 {[%emt 0:00:11]} 4. d3 {[%emt 0:00:07]} Be7 {[%emt 0:00:46]} 5. O-O {[%emt 0:00:43]} O-O {[%emt 0:00:37]} 6. c3 {[%emt 0:00:26]} d6 {[%emt 0:01:05]} 7. Bb3 {[%emt 0:00:15]} Be6 {[%emt 0:07:14]} 8. Nbd2 {[%emt 0:03:24]} Bxb3 {[%emt 0:05:27]} 9. Qxb3 {[%emt 0:03:22]} Na5 {[%emt 0:04:47]} 10. Qd1 {[%emt 0:01:05]} c5 {[%emt 0:04:18]} 11. Re1 {[%emt 0:00:29]} Nc6 {[%emt 0:07:43]} 12. Nf1 {[%emt 0:01:12]} Re8 {[%emt 0:03:29]} 13. Ng3 {[%emt 0:01:51]} g6 {[%emt 0:01:52]} 14. d4 {[%emt 0:02:36]} Bf8 {[%emt 0:13:12]} 15. d5 {[%emt 0:02:15]} Nb8 {[%emt 0:01:32]} 16. Nd2 {[%emt 0:00:50]} Nbd7 {[%emt 0:01:34]} 17. a4 {[%emt 0:00:20]} Qc7 {[%emt 0:03:10]} 18. Nc4 {[%emt 0:05:39]} Rab8 {[%emt 0:04:03]} 19. f4 {[%emt 0:02:37]} Bg7 {[%emt 0:02:15]} 20. Qf3 {[%emt 0:02:41]} Rbd8 {[%emt 0:05:08]} 21. Rf1 {[%emt 0:03:02]} Rb8 {[%emt 0:01:43]} 22. Bd2 {[%emt 0:01:47]} Re7 {[%emt 0:00:53]} 23. Rae1 {[%emt 0:01:14]} Rf8 {[%emt 0:01:19]} 24. f5 {[%emt 0:08:00]} Ree8 {[%emt 0:02:12]} 25. Nh1 {[%emt 0:00:28]} Nb6 {[%emt 0:01:11]} 26. Ne3 {[%emt 0:03:56]} Nxa4 {[%emt 0:01:07]} 27. Ng4 {[%emt 0:01:03]} Nxg4 {[%emt 0:02:38]} 28. Qxg4 {[%emt 0:00:12]} Qe7 {[%emt 0:02:11]} 29. f6 {[%emt 0:01:32]} Bxf6 {[%emt 0:00:09]} 30. Rxf6 {[%emt 0:00:05]} Qxf6 {[%emt 0:00:08]} 31. Bg5 {[%emt 0:00:04]} Qg7 {[%emt 0:01:12]} 32. Qh4 {[%emt 0:00:42]} f6 {[%emt 0:00:52]} 33. Bh6 {[%emt 0:00:07]} Qe7 {[%emt 0:01:06]} 34. Bxf8 {[%emt 0:00:05]} Rxf8 {[%emt 0:00:19]} 35. Re2 {[%emt 0:00:50]} b5 {[%emt 0:03:11]} 36. Nf2 {[%emt 0:00:28]} Qg7 {[%emt 0:01:18]} 37. Ng4 {[%emt 0:02:51]} h5 {[%emt 0:01:04]} 38. Ne3 {[%emt 0:00:02]} Qh6 {[%emt 0:04:14]} 39. Qh3 {[%emt 0:00:21]} f5 {[%emt 0:01:27]} 40. exf5 {[%emt 0:00:44]} gxf5 {[%emt 0:00:06]} 41. Rf2 {[%emt 0:00:13]} f4 {[%emt 0:01:03]} 42. Nf5 {[%emt 0:01:36]} Qf6 {[%emt 0:02:02]} 43. Ng3 {[%emt 0:01:50]} h4 {[%emt 0:02:06]} 44. Qg4+ {[%emt 0:04:13]} Qg7 {[%emt 0:01:08]} 45. Qe6+ {[%emt 0:00:04]} Qf7 {[%emt 0:00:40]} 46. Qg4+ {[%emt 0:01:18]} Qg7 {[%emt 0:00:08]} 47. Qe6+ {[%emt 0:00:07]} Qf7 {[%emt 0:00:05]} 48. Qg4+ {[%emt 0:02:08]} Qg7 {[%emt 0:00:10]} 1/2-1/2

[Event "Steinthor Baldursson memorial 2018"]
[Site "?"]
[Date "2018.01.07"]
[Round "7"]
[White "Birkisson, Bardur Orn"]
[Black "Tokranovs, Dmitrijs"]
[Result "1/2-1/2"]
[ECO "A47"]
[WhiteElo "2190"]
[BlackElo "2354"]
[PlyCount "81"]
[EventDate "2018.??.??"]
[EventType "swiss"]
[EventCountry "ISL"]
[SourceTitle "Kopavogur"]
[TimeControl "5400+30"]
[WhiteClock "0:43:41"]
[BlackClock "0:00:39"]

1. d4 {[%emt 0:00:30]} Nf6 {[%emt 0:00:00]} 2. Nf3 {[%emt 0:01:42]} b6 {[%emt 0:00:55]} 3. Bf4 {[%emt 0:01:59]} Bb7 {[%emt 0:00:09]} 4. e3 {[%emt 0:01:03]} e6 {[%emt 0:01:43]} 5. Nbd2 {[%emt 0:00:59]} Be7 {[%emt 0:00:27]} 6. h3 {[%emt 0:01:15]} c5 {[%emt 0:01:07]} 7. c3 {[%emt 0:00:57]} O-O {[%emt 0:01:29]} 8. Bd3 {[%emt 0:01:13]} d6 {[%emt 0:02:39]} 9. O-O {[%emt 0:02:27]} Nbd7 {[%emt 0:00:51]} 10. Qe2 {[%emt 0:04:37]} a6 {[%emt 0:04:33]} 11. a4 {[%emt 0:02:28]} d5 {[%emt 0:08:05]} 12. Ne5 {[%emt 0:10:47]} c4 {[%emt 0:02:19]} 13. Bc2 {[%emt 0:04:08]} b5 {[%emt 0:00:48]} 14. b3 {[%emt 0:15:03]} Nxe5 {[%emt 0:05:30]} 15. Bxe5 {[%emt 0:01:50]} cxb3 {[%emt 0:11:34]} 16. Nxb3 {[%emt 0:09:25]} bxa4 {[%emt 0:02:04]} 17. Rxa4 {[%emt 0:02:02]} Bc6 {[%emt 0:00:20]} 18. Rxa6 {[%emt 0:05:53]} Qd7 {[%emt 0:00:53]} 19. Bd3 {[%emt 0:08:08]} Rxa6 {[%emt 0:00:50]} 20. Bxa6 {[%emt 0:00:31]} Ne4 {[%emt 0:00:04]} 21. c4 {[%emt 0:04:15]} Ba4 {[%emt 0:01:47]} 22. Nc1 {[%emt 0:04:02]} dxc4 {[%emt 0:06:10]} 23. Bxc4 {[%emt 0:00:31]} Rc8 {[%emt 0:00:34]} 24. Bd3 {[%emt 0:01:37]} Nc3 {[%emt 0:01:47]} 25. Qg4 {[%emt 0:01:06]} Bf8 {[%emt 0:00:18]} 26. Ne2 {[%emt 0:00:30]} Nxe2+ {[%emt 0:03:03]} 27. Qxe2 {[%emt 0:02:58]} Qd5 {[%emt 0:00:35]} 28. Ra1 {[%emt 0:03:02]} Bc6 {[%emt 0:00:41]} 29. f3 {[%emt 0:00:11]} Qb3 {[%emt 0:00:51]} 30. Qc2 {[%emt 0:05:18]} Qxc2 {[%emt 0:00:17]} 31. Bxc2 {[%emt 0:00:02]} Bxf3 {[%emt 0:00:58]} 32. Bxh7+ {[%emt 0:01:08]} Kxh7 {[%emt 0:00:05]} 33. gxf3 {[%emt 0:00:07]} Rc2 {[%emt 0:00:31]} 34. Bg3 {[%emt 0:03:38]} Kg6 {[%emt 0:00:26]} 35. Rf1 {[%emt 0:01:06]} Re2 {[%emt 0:00:36]} 36. Bf4 {[%emt 0:00:37]} Kf5 {[%emt 0:00:44]} 37. Rf2 {[%emt 0:00:15]} Re1+ {[%emt 0:00:06]} 38. Rf1 {[%emt 0:00:08]} Re2 {[%emt 0:00:07]} 39. Rf2 {[%emt 0:00:58]} Re1+ {[%emt 0:00:02]} 40. Rf1 {[%emt 0:00:33]} Re2 {[%emt 0:00:21]} 41. Rf2 {[%emt 0:00:52]} 1/2-1/2

[Event "Steinthor Baldursson memorial 2018"]
[Site "?"]
[Date "2018.01.07"]
[Round "7"]
[White "Mai, Aron Thor"]
[Black "Fjallheim, Leif Reinert"]
[Result "1-0"]
[ECO "B06"]
[WhiteElo "2066"]
[BlackElo "1720"]
[PlyCount "57"]
[EventDate "2018.??.??"]
[EventType "swiss"]
[EventCountry "ISL"]
[SourceTitle "Kopavogur"]
[TimeControl "5400+30"]
[WhiteClock "0:00:31"]
[BlackClock "0:36:03"]

1. e4 {[%emt 0:00:00]} d6 {[%emt 0:00:00]} 2. d4 {[%emt 0:00:00]} g6 {[%emt 0:00:23]} 3. Nc3 {[%emt 0:00:00]} Bg7 {[%emt 0:00:52]} 4. f4 {[%emt 0:00:10]} a6 {[%emt 0:15:32]} 5. Nf3 {[%emt 0:01:51]} Nd7 {[%emt 0:06:28]} 6. e5 {[%emt 0:05:05]} e6 {[%emt 0:09:01]} 7. Bd3 {[%emt 0:02:44]} Ne7 {[%emt 0:07:48]} 8. O-O {[%emt 0:09:52]} b6 {[%emt 0:08:26]} 9. Ne4 {[%emt 0:05:39]} d5 {[%emt 0:03:40]} 10. Nf2 {[%emt 0:00:56]} c5 {[%emt 0:02:19]} 11. c3 {[%emt 0:02:05]} Bb7 {[%emt 0:11:30]} 12. a4 {[%emt 0:05:47]} Nc6 {[%emt 0:07:42]} 13. Bd2 {[%emt 0:02:10]} c4 {[%emt 0:05:22]} 14. Bc2 {[%emt 0:00:55]} b5 {[%emt 0:01:41]} 15. g4 {[%emt 0:07:34]} h5 {[%emt 0:10:01]} 16. h3 {[%emt 0:00:28]} Ne7 {[%emt 0:01:05]} 17. Qe2 {[%emt 0:03:02]} Bc6 {[%emt 0:02:48]} 18. axb5 {[%emt 0:02:24]} Bxb5 {[%emt 0:00:29]} 19. Kg2 {[%emt 0:02:18]} Qb6 {[%emt 0:00:18]} 20. Nd1 {[%emt 0:02:07]} O-O-O {[%emt 0:02:13]} 21. Ne3 {[%emt 0:01:00]} f5 {[%emt 0:02:11]} 22. gxf5 {[%emt 0:06:13]} gxf5 {[%emt 0:00:36]} 23. Ng5 {[%emt 0:00:44]} Rdf8 {[%emt 0:00:28]} 24. Kh2 {[%emt 0:00:50]} Ng6 {[%emt 0:00:32]} 25. Ng2 {[%emt 0:00:53]} Nb8 {[%emt 0:00:22]} 26. Rfb1 {[%emt 0:01:16]} Qb7 {[%emt 0:00:39]} 27. Nxe6 {[%emt 0:01:05]} Re8 {[%emt 0:00:28]} 28. Bxf5 {[%emt 0:00:49]} Qb6 {[%emt 0:00:35]} 29. Nxg7+ {[%emt 0:00:30]} 1-0